[Event "44th Chess Olympiad Open 2022"]
[Site "Chennai"]
[Date "2022.07.31"]
[Round "3.36"]
[White "Nyysti, Sampsa"]
[Black "Salazar Cabezas, Alberto Javier"]
[Result "1-0"]
[WhiteElo "2363"]
[BlackElo "2155"]
[Annotator "RC"]
[PlyCount "113"]
[EventDate "2022.??.??"]
[TimeControl "60"]

1. e4 {[%emt 0:00:03]} e6 {[%emt 0:00:05]} 2. d4 {[%emt 0:00:10]} d5 {[%emt 0:
00:00]} 3. e5 {[%emt 0:00:08]} c5 {[%emt 0:00:04]} 4. c3 {[%emt 0:00:06]} Nc6 {
[%emt 0:00:05]} 5. Nf3 {[%emt 0:00:21]} Bd7 {[%emt 0:00:12]} 6. Be2 {[%emt 0:
00:00]} Nge7 {[%emt 0:01:04]} 7. O-O {[%emt 0:00:06]} Nf5 {[%emt 0:05:14]} 8.
a3 {[%emt 0:01:33]} cxd4 {[%emt 0:01:51]} 9. c4 {[%emt 0:05:08]} dxc4 {[%emt 0:
00:00]} 10. Bxc4 {[%emt 0:00:03]} Be7 {[%emt 0:17:52]} 11. Re1 {[%emt 0:00:49]}
h5 {[%emt 0:02:36]} 12. b4 {[%emt 0:04:49]} g5 {[%emt 0:08:21]} 13. Bb2 {
[%emt 0:05:11]} g4 {[%emt 0:09:01]} 14. Nxd4 {[%emt 0:02:08]} Ncxd4 {[%emt 0:
00:00]} 15. Bxd4 {[%emt 0:00:02]} Bc6 {[%emt 0:04:59]} 16. Bb2 {[%emt 0:00:55]}
Qxd1 {[%emt 0:01:58]} 17. Rxd1 {[%emt 0:00:01]} Ba4 {[%emt 0:00:56]} 18. Re1 {
[%emt 0:05:21]} Rc8 {[%emt 0:03:27]} 19. Bd3 {[%emt 0:02:52]} O-O {[%emt 0:00:
00]} 20. Nc3 {[%emt 0:01:38]} Bb3 {[%emt 0:00:32]} 21. Be4 {[%emt 0:09:26]} b6
{[%emt 0:03:43]} 22. Nb5 {[%emt 0:05:21]} Ba4 {[%emt 0:03:04]} 23. Nc3 {
[%emt 0:17:51]} Bb3 {[%emt 0:00:32]} 24. Bb7 {[%emt 0:05:21]} Rc7 {[%emt 0:00:
00]} 25. Ba6 {[%emt 0:06:07]} Bc4 {[%emt 0:07:21]} 26. Nb5 {[%emt 0:00:00]}
Bxb5 {[%emt 0:00:22]} 27. Bxb5 {[%emt 0:00:00]} Rc2 {[%emt 0:00:32]} 28. Re2 {
[%emt 0:04:56]} Rfc8 {[%emt 0:00:49]} 29. Kf1 {[%emt 0:01:48]} Rxe2 {[%emt 0:
00:00]} 30. Bxe2 {[%emt 0:00:03]} Rc2 {[%emt 0:00:08]} 31. Rb1 {[%emt 0:00:38]}
a5 {[%emt 0:01:06]} 32. Bd1 {[%emt 0:04:43]} Rd2 {[%emt 0:02:06]} 33. Ke1 {
[%emt 0:00:42]} Rd8 {[%emt 0:00:51]} 34. bxa5 {[%emt 0:04:18]} bxa5 {[%emt 0:
00:00]} 35. Bc2 {[%emt 0:00:30]} Nd4 {[%emt 0:00:55]} 36. Be4 {[%emt 0:00:17]}
a4 {[%emt 0:00:14]} 37. Rd1 {[%emt 0:02:06]} Nb3 {[%emt 0:02:37]} 38. Rxd8+ {
[%emt 0:00:36]} Bxd8 {[%emt 0:00:01]} 39. Bc6 {[%emt 0:02:40]} Nc5 {[%emt 0:00:
00]} 40. Kd2 {[%emt 0:03:42]} Ba5+ {[%emt 0:00:57]} 41. Kc2 {[%emt 0:31:26]}
Kg7 {[%emt 0:31:14]} 42. Bd4 {[%emt 0:00:29]} Nb3 {[%emt 0:01:37]} 43. Be3 {
[%emt 0:00:18]} Bc7 {[%emt 0:00:28]} 44. Bxa4 {[%emt 0:00:28]} Na5 {[%emt 0:00:
00]} 45. Kd3 {[%emt 0:03:33]} Bxe5 {[%emt 0:01:02]} 46. Bb6 {[%emt 0:00:42]}
Nb7 {[%emt 0:00:03]} 47. Bc6 {[%emt 0:00:33]} Nd6 {[%emt 0:00:07]} 48. a4 {
[%emt 0:01:22]} Nc8 {[%emt 0:00:12]} 49. Bd4 {[%emt 0:01:25]} Kf6 {[%emt 0:00:
00]} 50. a5 {[%emt 0:01:53]} h4 {[%emt 0:03:06]} 51. a6 {[%emt 0:00:00]} Bxd4 {
[%emt 0:00:00]} 52. Kxd4 {[%emt 0:00:00]} Ke7 {[%emt 0:00:00]} 53. Kc5 {
[%emt 0:00:00]} Kd8 {[%emt 0:00:00]} 54. Bb7 {[%emt 0:00:00]} Kc7 {[%emt 0:00:
00]} 55. Bxc8 {[%emt 0:00:00]} Kxc8 {[%emt 0:00:00]} 56. Kd6 {[%emt 0:00:00]}
Kb8 {[%emt 0:00:00]} 57. g3 {[%emt 0:00:00]} 1-0

[Event "44th Chess Olympiad Open 2022"]
[Site "Chennai"]
[Date "2022.07.31"]
[Round "3.36"]
[White "Rocha, Maximiliano"]
[Black "Sklyarov, Dmitry V."]
[Result "1/2-1/2"]
[WhiteElo "2117"]
[BlackElo "2474"]
[Annotator "RC"]
[PlyCount "168"]
[EventDate "2022.??.??"]
[TimeControl "60"]

1. d4 {[%emt 0:01:19]} g6 {[%emt 0:00:29]} 2. c4 {[%emt 0:00:20]} Bg7 {[%emt 0:
00:00]} 3. Nc3 {[%emt 0:00:06]} d6 {[%emt 0:00:08]} 4. e4 {[%emt 0:00:13]} e5 {
[%emt 0:00:34]} 5. d5 {[%emt 0:01:50]} Nd7 {[%emt 0:01:13]} 6. Be2 {[%emt 0:00:
00]} a5 {[%emt 0:01:37]} 7. Be3 {[%emt 0:02:29]} Bh6 {[%emt 0:00:49]} 8. Bxh6 {
[%emt 0:02:23]} Nxh6 {[%emt 0:00:01]} 9. Qd2 {[%emt 0:00:00]} Ng8 {[%emt 0:00:
00]} 10. h4 {[%emt 0:00:14]} h5 {[%emt 0:08:06]} 11. O-O-O {[%emt 0:19:21]} Nc5
{[%emt 0:01:44]} 12. Nf3 {[%emt 0:15:17]} Bd7 {[%emt 0:08:06]} 13. Ng5 {
[%emt 0:01:53]} f6 {[%emt 0:05:18]} 14. Nh3 {[%emt 0:00:31]} Qe7 {[%emt 0:00:
00]} 15. f3 {[%emt 0:02:52]} Qg7 {[%emt 0:03:35]} 16. Rdf1 {[%emt 0:05:31]} Nh6
{[%emt 0:03:08]} 17. Nf2 {[%emt 0:00:34]} Nf7 {[%emt 0:00:16]} 18. Nd3 {
[%emt 0:07:54]} Nxd3+ {[%emt 0:13:49]} 19. Qxd3 {[%emt 0:00:52]} g5 {[%emt 0:
00:00]} 20. g3 {[%emt 0:00:38]} gxh4 {[%emt 0:02:48]} 21. gxh4 {[%emt 0:00:16]}
Qh6+ {[%emt 0:00:31]} 22. Kb1 {[%emt 0:00:23]} Ke7 {[%emt 0:00:48]} 23. Nd1 {
[%emt 0:02:55]} Rhg8 {[%emt 0:03:15]} 24. Ne3 {[%emt 0:00:11]} b6 {[%emt 0:00:
00]} 25. Rd1 {[%emt 0:05:52]} Qf4 {[%emt 0:00:46]} 26. b3 {[%emt 0:02:20]} Rg3
{[%emt 0:00:25]} 27. Kb2 {[%emt 0:00:18]} Rag8 {[%emt 0:02:21]} 28. a3 {
[%emt 0:02:55]} f5 {[%emt 0:06:06]} 29. Nxf5+ {[%emt 0:03:45]} Bxf5 {[%emt 0:
00:00]} 30. exf5 {[%emt 0:00:16]} Rg2 {[%emt 0:00:18]} 31. Rde1 {[%emt 0:04:44]
} Nh6 {[%emt 0:04:29]} 32. Kc3 {[%emt 0:00:27]} Nxf5 {[%emt 0:03:41]} 33. Bd1 {
[%emt 0:02:15]} R8g3 {[%emt 0:03:48]} 34. Rhf1 {[%emt 0:01:29]} Ra2 {[%emt 0:
00:00]} 35. Bc2 {[%emt 0:06:41]} Rg2 {[%emt 0:06:12]} 36. Bb1 {[%emt 0:02:39]}
Rab2 {[%emt 0:04:04]} 37. Re4 {[%emt 0:00:22]} Qh2 {[%emt 0:00:12]} 38. Rfe1 {
[%emt 0:01:25]} Kd8 {[%emt 0:01:28]} 39. Rxe5 {[%emt 0:00:52]} dxe5 {[%emt 0:
00:00]} 40. Qxf5 {[%emt 0:00:10]} Qf4 {[%emt 0:00:46]} 41. Qxf4 {[%emt 0:32:00]
} exf4 {[%emt 0:30:02]} 42. Be4 {[%emt 0:00:16]} Rbe2 {[%emt 0:00:50]} 43. Rb1
{[%emt 0:00:27]} Ke7 {[%emt 0:00:18]} 44. b4 {[%emt 0:00:06]} axb4+ {[%emt 0:
00:00]} 45. axb4 {[%emt 0:00:01]} Kd6 {[%emt 0:00:00]} 46. Kd4 {[%emt 0:00:00]}
Rb2 {[%emt 0:00:00]} 47. c5+ {[%emt 0:00:00]} Kd7 {[%emt 0:00:00]} 48. Bf5+ {
[%emt 0:00:00]} Kd8 {[%emt 0:00:00]} 49. cxb6 {[%emt 0:00:00]} Rxb1 {[%emt 0:
00:00]} 50. bxc7+ {[%emt 0:00:00]} Kxc7 {[%emt 0:00:00]} 51. Bxb1 {[%emt 0:00:
00]} Kd6 {[%emt 0:00:00]} 52. Ke4 {[%emt 0:00:00]} Rb2 {[%emt 0:00:00]} 53. Bd3
{[%emt 0:00:00]} Rxb4+ {[%emt 0:00:00]} 54. Kf5 {[%emt 0:00:08]} Kxd5 {[%emt 0:
00:00]} 55. Be4+ {[%emt 0:00:00]} Kd6 {[%emt 0:00:00]} 56. Kxf4 {[%emt 0:00:00]
} Rb5 {[%emt 0:00:00]} 57. Bf5 {[%emt 0:00:00]} Ke7 {[%emt 0:00:00]} 58. Kg5 {
[%emt 0:00:00]} Kf7 {[%emt 0:00:00]} 59. Kf4 {[%emt 0:00:00]} Kf6 {[%emt 0:00:
00]} 60. Be4 {[%emt 0:00:00]} Rb6 {[%emt 0:00:00]} 61. Bd5 {[%emt 0:00:00]} Rb1
{[%emt 0:00:00]} 62. Bc6 {[%emt 0:00:00]} Rc1 {[%emt 0:00:00]} 63. Bb7 {
[%emt 0:00:00]} Rh1 {[%emt 0:00:00]} 64. Kg3 {[%emt 0:00:00]} Kf5 {[%emt 0:00:
00]} 65. Bc6 {[%emt 0:00:00]} Rg1+ {[%emt 0:00:00]} 66. Kh2 {[%emt 0:00:00]}
Rg8 {[%emt 0:00:00]} 67. Bd5 {[%emt 0:00:00]} Rg7 {[%emt 0:00:00]} 68. Bc6 {
[%emt 0:00:00]} Kf4 {[%emt 0:00:00]} 69. Bd5 {[%emt 0:00:00]} Ke3 {[%emt 0:00:
00]} 70. Bc6 {[%emt 0:00:00]} Kf2 {[%emt 0:00:18]} 71. Bd5 {[%emt 0:00:00]} Rg3
{[%emt 0:03:54]} 72. Bc6 {[%emt 0:00:00]} Rg2+ {[%emt 0:00:06]} 73. Kh3 {
[%emt 0:00:00]} Rg6 {[%emt 0:00:06]} 74. Be4 {[%emt 0:00:00]} Rg1 {[%emt 0:00:
00]} 75. Kh2 {[%emt 0:00:00]} Ra1 {[%emt 0:00:48]} 76. Bd5 {[%emt 0:00:00]} Ra5
{[%emt 0:00:06]} 77. Bc6 {[%emt 0:00:00]} Ra6 {[%emt 0:00:18]} 78. Bd5 {
[%emt 0:00:00]} Ra4 {[%emt 0:00:03]} 79. Be4 {[%emt 0:00:00]} Rb4 {[%emt 0:00:
00]} 80. Kh3 {[%emt 0:00:06]} Ke3 {[%emt 0:07:51]} 81. Kg3 {[%emt 0:00:00]} Rb8
{[%emt 0:00:08]} 82. Bd5 {[%emt 0:00:00]} Rd8 {[%emt 0:00:05]} 83. Be4 {
[%emt 0:00:00]} Rg8+ {[%emt 0:00:02]} 84. Kh2 {[%emt 0:00:00]} Kf4 {[%emt 0:00:
00]} 1/2-1/2

[Event "44th Chess Olympiad Open 2022"]
[Site "Chennai"]
[Date "2022.07.31"]
[Round "3.36"]
[White "Espinoza Solano, Jose Nahum"]
[Black "Koykka, Pekka"]
[Result "0-1"]
[WhiteElo "2093"]
[BlackElo "2361"]
[Annotator "RC"]
[PlyCount "64"]
[EventDate "2022.??.??"]
[TimeControl "60"]

1. e4 {[%emt 0:00:03]} c6 {[%emt 0:00:13]} 2. d4 {[%emt 0:00:08]} d5 {[%emt 0:
00:00]} 3. exd5 {[%emt 0:00:04]} cxd5 {[%emt 0:00:09]} 4. c4 {[%emt 0:00:03]}
Nf6 {[%emt 0:00:10]} 5. Nc3 {[%emt 0:00:19]} Nc6 {[%emt 0:00:13]} 6. Nf3 {
[%emt 0:00:06]} Be6 {[%emt 0:00:17]} 7. c5 {[%emt 0:04:55]} g6 {[%emt 0:00:13]}
8. Bb5 {[%emt 0:01:37]} Bg7 {[%emt 0:00:20]} 9. Bxc6+ {[%emt 0:01:52]} bxc6 {
[%emt 0:00:09]} 10. Ne5 {[%emt 0:00:20]} Qc8 {[%emt 0:07:36]} 11. Qa4 {[%emt 0:
00:00]} Bd7 {[%emt 0:02:43]} 12. O-O {[%emt 0:00:28]} O-O {[%emt 0:01:40]} 13.
Bg5 {[%emt 0:04:49]} Be8 {[%emt 0:07:31]} 14. Rfe1 {[%emt 0:03:28]} h6 {
[%emt 0:01:31]} 15. Bh4 {[%emt 0:00:41]} g5 {[%emt 0:01:46]} 16. Bg3 {[%emt 0:
00:00]} Nh5 {[%emt 0:00:28]} 17. Qd1 {[%emt 0:13:40]} f6 {[%emt 0:05:45]} 18.
Nd3 {[%emt 0:01:37]} Nxg3 {[%emt 0:16:23]} 19. fxg3 {[%emt 0:05:09]} e6 {
[%emt 0:01:42]} 20. Qe2 {[%emt 0:01:57]} Bg6 {[%emt 0:01:51]} 21. Qxe6+ {
[%emt 0:07:37]} Qxe6 {[%emt 0:00:11]} 22. Rxe6 {[%emt 0:00:03]} Bxd3 {[%emt 0:
00:00]} 23. Rxc6 {[%emt 0:00:04]} f5 {[%emt 0:10:23]} 24. Nxd5 {[%emt 0:01:00]}
Be4 {[%emt 0:05:02]} 25. Ne7+ {[%emt 0:10:50]} Kf7 {[%emt 0:04:13]} 26. Rc7 {
[%emt 0:03:58]} Bxd4+ {[%emt 0:00:21]} 27. Kh1 {[%emt 0:00:02]} Be5 {[%emt 0:
00:00]} 28. Rd7 {[%emt 0:00:08]} Ke6 {[%emt 0:00:57]} 29. c6 {[%emt 0:03:44]}
Rf7 {[%emt 0:01:50]} 30. Ng6 {[%emt 0:00:49]} Rxd7 {[%emt 0:01:23]} 31. cxd7 {
[%emt 0:00:20]} Bxb2 {[%emt 0:05:56]} 32. Rd1 {[%emt 0:01:26]} Rd8 {[%emt 0:00:
00]} 0-1

[Event "44th Chess Olympiad Open 2022"]
[Site "Chennai"]
[Date "2022.07.31"]
[Round "3.37"]
[White "Goh, Wei Ming Kevin"]
[Black "Lama, Milan"]
[Result "1-0"]
[WhiteElo "2453"]
[BlackElo "2024"]
[Annotator "RC"]
[PlyCount "69"]
[EventDate "2022.??.??"]
[TimeControl "60"]

1. e4 {[%emt 0:00:23]} c5 {[%emt 0:00:07]} 2. Nf3 {[%emt 0:00:17]} g6 {[%emt 0:
00:00]} 3. c3 {[%emt 0:00:41]} Bg7 {[%emt 0:01:08]} 4. d4 {[%emt 0:00:06]} cxd4
{[%emt 0:00:05]} 5. cxd4 {[%emt 0:00:03]} d5 {[%emt 0:00:56]} 6. e5 {[%emt 0:
00:00]} Bg4 {[%emt 0:02:01]} 7. Bb5+ {[%emt 0:00:08]} Nd7 {[%emt 0:01:18]} 8.
Nbd2 {[%emt 0:02:33]} Nh6 {[%emt 0:08:55]} 9. O-O {[%emt 0:06:47]} O-O {
[%emt 0:01:22]} 10. h3 {[%emt 0:00:54]} Bxf3 {[%emt 0:01:00]} 11. Nxf3 {
[%emt 0:00:14]} a6 {[%emt 0:05:06]} 12. Bd3 {[%emt 0:08:09]} e6 {[%emt 0:05:29]
} 13. Bg5 {[%emt 0:11:37]} f6 {[%emt 0:13:29]} 14. exf6 {[%emt 0:02:50]} Nxf6 {
[%emt 0:00:19]} 15. Re1 {[%emt 0:00:52]} Qb6 {[%emt 0:11:16]} 16. Qb3 {[%emt 0:
00:00]} Qxb3 {[%emt 0:09:33]} 17. axb3 {[%emt 0:00:11]} Rfe8 {[%emt 0:03:31]}
18. Rac1 {[%emt 0:00:39]} Re7 {[%emt 0:07:30]} 19. Bd2 {[%emt 0:04:17]} Nf7 {
[%emt 0:06:10]} 20. Bb4 {[%emt 0:02:35]} Ree8 {[%emt 0:00:10]} 21. Rc7 {
[%emt 0:00:25]} Nd8 {[%emt 0:04:39]} 22. Bd6 {[%emt 0:04:52]} Bf8 {[%emt 0:00:
00]} 23. Bf4 {[%emt 0:11:22]} Nh5 {[%emt 0:04:37]} 24. Bg5 {[%emt 0:02:13]} Bb4
{[%emt 0:05:03]} 25. Rec1 {[%emt 0:05:42]} Nf7 {[%emt 0:02:38]} 26. Be3 {
[%emt 0:01:15]} Rab8 {[%emt 0:01:26]} 27. g4 {[%emt 0:03:02]} Ng7 {[%emt 0:00:
00]} 28. Bf4 {[%emt 0:00:44]} Bd6 {[%emt 0:00:18]} 29. Rxf7 {[%emt 0:00:30]}
Kxf7 {[%emt 0:00:23]} 30. Bxd6 {[%emt 0:00:04]} Rbc8 {[%emt 0:00:52]} 31. Re1 {
[%emt 0:00:23]} Kg8 {[%emt 0:00:19]} 32. b4 {[%emt 0:02:03]} Rc6 {[%emt 0:00:
00]} 33. Bc5 {[%emt 0:00:06]} b5 {[%emt 0:00:40]} 34. Ra1 {[%emt 0:00:22]} Rec8
{[%emt 0:00:33]} 35. Ne5 {[%emt 0:00:08]} 1-0

[Event "44th Chess Olympiad Open 2022"]
[Site "Chennai"]
[Date "2022.07.31"]
[Round "3.37"]
[White "Thing, Bibek"]
[Black "Tin, Jingyao"]
[Result "0-1"]
[WhiteElo "2260"]
[BlackElo "2552"]
[Annotator "RC"]
[PlyCount "82"]
[EventDate "2022.??.??"]
[TimeControl "60"]

1. e4 {[%emt 0:00:42]} c6 {[%emt 0:00:14]} 2. d4 {[%emt 0:00:32]} d5 {[%emt 0:
00:00]} 3. e5 {[%emt 0:00:06]} c5 {[%emt 0:00:12]} 4. dxc5 {[%emt 0:00:34]} e6
{[%emt 0:00:18]} 5. Be3 {[%emt 0:01:57]} Nd7 {[%emt 0:00:10]} 6. Bb5 {[%emt 0:
00:00]} Ne7 {[%emt 0:00:22]} 7. g4 {[%emt 0:26:00]} Nc6 {[%emt 0:06:01]} 8. Nf3
{[%emt 0:05:02]} Bxc5 {[%emt 0:04:44]} 9. Bxc5 {[%emt 0:00:51]} Nxc5 {[%emt 0:
00:00]} 10. Nc3 {[%emt 0:02:17]} a6 {[%emt 0:11:51]} 11. Bxc6+ {[%emt 0:01:45]}
bxc6 {[%emt 0:00:05]} 12. Qd2 {[%emt 0:02:37]} Qb6 {[%emt 0:04:59]} 13. b3 {
[%emt 0:05:44]} a5 {[%emt 0:02:16]} 14. O-O {[%emt 0:04:11]} O-O {[%emt 0:00:
00]} 15. g5 {[%emt 0:01:33]} Nd7 {[%emt 0:04:10]} 16. h4 {[%emt 0:04:55]} Qb4 {
[%emt 0:07:05]} 17. Kh2 {[%emt 0:02:32]} c5 {[%emt 0:01:30]} 18. Rg1 {[%emt 0:
00:00]} Bb7 {[%emt 0:03:51]} 19. a3 {[%emt 0:00:55]} Nxe5 {[%emt 0:01:42]} 20.
Nxe5 {[%emt 0:11:57]} Qxh4+ {[%emt 0:00:12]} 21. Kg2 {[%emt 0:00:00]} d4+ {
[%emt 0:00:27]} 22. f3 {[%emt 0:02:20]} dxc3 {[%emt 0:00:20]} 23. Qxc3 {
[%emt 0:01:46]} Qxg5+ {[%emt 0:11:18]} 24. Kf2 {[%emt 0:04:53]} Qh4+ {[%emt 0:
00:00]} 25. Ke3 {[%emt 0:00:59]} f6 {[%emt 0:02:08]} 26. Nd3 {[%emt 0:05:07]}
Rac8 {[%emt 0:02:10]} 27. Nf4 {[%emt 0:04:22]} g5 {[%emt 0:06:03]} 28. Rg4 {
[%emt 0:01:05]} Qh6 {[%emt 0:01:06]} 29. Rag1 {[%emt 0:00:43]} Rf7 {[%emt 0:00:
00]} 30. Qc4 {[%emt 0:00:54]} Re7 {[%emt 0:02:27]} 31. Kd2 {[%emt 0:00:26]} Kh8
{[%emt 0:02:55]} 32. Nd3 {[%emt 0:01:46]} Bxf3 {[%emt 0:00:46]} 33. R4g3 {
[%emt 0:00:20]} g4+ {[%emt 0:00:17]} 34. Kc3 {[%emt 0:00:13]} Qe3 {[%emt 0:00:
00]} 35. Qa6 {[%emt 0:00:31]} Qd4+ {[%emt 0:00:54]} 36. Kd2 {[%emt 0:00:02]}
Rd8 {[%emt 0:00:22]} 37. Qxa5 {[%emt 0:00:49]} e5 {[%emt 0:01:25]} 38. Kc1 {
[%emt 0:01:00]} c4 {[%emt 0:01:24]} 39. Rxg4 {[%emt 0:00:35]} Bxg4 {[%emt 0:00:
00]} 40. Rxg4 {[%emt 0:00:03]} e4 {[%emt 0:00:26]} 41. bxc4 {[%emt 0:01:51]}
Rb8 {[%emt 0:01:59]} 0-1

[Event "44th Chess Olympiad Open 2022"]
[Site "Chennai"]
[Date "2022.07.31"]
[Round "3.37"]
[White "Wong, Zhenyong Jayden"]
[Black "Jaiswal, Rupesh"]
[Result "1/2-1/2"]
[WhiteElo "2163"]
[BlackElo "2083"]
[Annotator "RC"]
[PlyCount "81"]
[EventDate "2022.??.??"]
[TimeControl "60"]

1. d4 {[%emt 0:00:03]} Nf6 {[%emt 0:00:06]} 2. c4 {[%emt 0:00:06]} g6 {[%emt 0:
00:00]} 3. g3 {[%emt 0:00:07]} Bg7 {[%emt 0:00:06]} 4. Bg2 {[%emt 0:00:03]} O-O
{[%emt 0:00:27]} 5. Nc3 {[%emt 0:00:04]} d6 {[%emt 0:00:04]} 6. Nf3 {[%emt 0:
00:00]} a6 {[%emt 0:00:03]} 7. O-O {[%emt 0:00:36]} Nc6 {[%emt 0:00:05]} 8. b3
{[%emt 0:00:54]} e5 {[%emt 0:02:03]} 9. dxe5 {[%emt 0:00:49]} Ng4 {[%emt 0:00:
00]} 10. Bb2 {[%emt 0:01:57]} Ngxe5 {[%emt 0:01:27]} 11. Nxe5 {[%emt 0:02:13]}
dxe5 {[%emt 0:02:42]} 12. Qxd8 {[%emt 0:04:05]} Rxd8 {[%emt 0:04:33]} 13. Rfd1
{[%emt 0:05:14]} Be6 {[%emt 0:06:30]} 14. Bd5 {[%emt 0:18:11]} Bxd5 {[%emt 0:
00:00]} 15. cxd5 {[%emt 0:05:05]} Nd4 {[%emt 0:05:48]} 16. Kg2 {[%emt 0:05:56]}
c6 {[%emt 0:07:57]} 17. e3 {[%emt 0:01:13]} Nc2 {[%emt 0:00:19]} 18. Rac1 {
[%emt 0:09:47]} Nb4 {[%emt 0:00:22]} 19. dxc6 {[%emt 0:00:57]} Nxc6 {[%emt 0:
00:00]} 20. Ne4 {[%emt 0:05:00]} Rxd1 {[%emt 0:01:46]} 21. Rxd1 {[%emt 0:00:01]
} Rd8 {[%emt 0:00:10]} 22. Rxd8+ {[%emt 0:02:43]} Nxd8 {[%emt 0:00:02]} 23. g4
{[%emt 0:00:31]} h6 {[%emt 0:03:58]} 24. h4 {[%emt 0:02:14]} Kf8 {[%emt 0:00:
00]} 25. f4 {[%emt 0:05:50]} exf4 {[%emt 0:02:57]} 26. Ba3+ {[%emt 0:00:35]}
Ke8 {[%emt 0:01:13]} 27. exf4 {[%emt 0:00:02]} Kd7 {[%emt 0:03:49]} 28. f5 {
[%emt 0:03:41]} Be5 {[%emt 0:00:49]} 29. Kf3 {[%emt 0:02:42]} gxf5 {[%emt 0:00:
00]} 30. gxf5 {[%emt 0:00:04]} h5 {[%emt 0:00:26]} 31. Bc1 {[%emt 0:04:22]} Nc6
{[%emt 0:01:29]} 32. Nc5+ {[%emt 0:00:41]} Kd6 {[%emt 0:02:31]} 33. Nxb7+ {
[%emt 0:02:36]} Kd5 {[%emt 0:00:13]} 34. Be3 {[%emt 0:01:07]} Ne7 {[%emt 0:00:
00]} 35. Nc5 {[%emt 0:01:34]} Nxf5 {[%emt 0:02:25]} 36. Nxa6 {[%emt 0:00:27]}
Nxh4+ {[%emt 0:00:05]} 37. Kf2 {[%emt 0:01:05]} Nf5 {[%emt 0:01:56]} 38. Nb4+ {
[%emt 0:09:59]} Ke4 {[%emt 0:00:22]} 39. Bc5 {[%emt 0:02:05]} h4 {[%emt 0:00:
00]} 40. Kg2 {[%emt 0:02:22]} Ng7 {[%emt 0:01:26]} 41. Bf2 {[%emt 0:33:23]}
1/2-1/2

[Event "44th Chess Olympiad Open 2022"]
[Site "Chennai"]
[Date "2022.07.31"]
[Round "3.37"]
[White "Bhandari, Kshitiz"]
[Black "Siddharth, Jagadeesh"]
[Result "0-1"]
[WhiteElo "2071"]
[BlackElo "2426"]
[Annotator "RC"]
[PlyCount "82"]
[EventDate "2022.??.??"]
[TimeControl "60"]

1. Nf3 {[%emt 0:00:02]} Nf6 {[%emt 0:00:19]} 2. d4 {[%emt 0:00:06]} e6 {
[%emt 0:00:15]} 3. c4 {[%emt 0:00:19]} b6 {[%emt 0:00:22]} 4. g3 {[%emt 0:00:
00]} Bb7 {[%emt 0:00:16]} 5. Bg2 {[%emt 0:00:05]} Bb4+ {[%emt 0:00:24]} 6. Nbd2
{[%emt 0:01:45]} O-O {[%emt 0:00:40]} 7. O-O {[%emt 0:00:03]} Be7 {[%emt 0:00:
00]} 8. Qc2 {[%emt 0:02:13]} d5 {[%emt 0:02:34]} 9. Rd1 {[%emt 0:05:57]} c5 {
[%emt 0:02:53]} 10. dxc5 {[%emt 0:00:09]} bxc5 {[%emt 0:00:26]} 11. cxd5 {
[%emt 0:03:49]} exd5 {[%emt 0:01:23]} 12. Nh4 {[%emt 0:00:23]} Re8 {[%emt 0:00:
00]} 13. b3 {[%emt 0:06:38]} Bf8 {[%emt 0:02:47]} 14. e3 {[%emt 0:00:22]} Nbd7
{[%emt 0:00:54]} 15. Bb2 {[%emt 0:00:43]} Qb6 {[%emt 0:00:21]} 16. e4 {[%emt 0:
00:00]} dxe4 {[%emt 0:03:54]} 17. Nc4 {[%emt 0:04:42]} Qe6 {[%emt 0:00:22]} 18.
Bf1 {[%emt 0:04:55]} Rad8 {[%emt 0:03:00]} 19. Ng2 {[%emt 0:00:49]} Nd5 {
[%emt 0:13:25]} 20. a3 {[%emt 0:03:35]} N7f6 {[%emt 0:01:23]} 21. Re1 {[%emt 0:
00:00]} Qf5 {[%emt 0:16:10]} 22. Nge3 {[%emt 0:01:17]} Qg6 {[%emt 0:01:40]} 23.
Bg2 {[%emt 0:10:19]} Nxe3 {[%emt 0:04:06]} 24. fxe3 {[%emt 0:00:24]} Ng4 {
[%emt 0:01:51]} 25. Rad1 {[%emt 0:02:19]} Rxd1 {[%emt 0:09:17]} 26. Qxd1 {
[%emt 0:03:34]} Ba6 {[%emt 0:03:53]} 27. Bh3 {[%emt 0:04:07]} Bxc4 {[%emt 0:00:
00]} 28. bxc4 {[%emt 0:00:08]} h5 {[%emt 0:01:53]} 29. Bc3 {[%emt 0:05:03]} Bd6
{[%emt 0:02:59]} 30. Bxg4 {[%emt 0:00:12]} hxg4 {[%emt 0:00:06]} 31. Qa4 {
[%emt 0:03:33]} Qe6 {[%emt 0:06:32]} 32. Rd1 {[%emt 0:03:36]} Rb8 {[%emt 0:00:
00]} 33. Kg2 {[%emt 0:03:50]} Qh6 {[%emt 0:03:00]} 34. Qd7 {[%emt 0:03:14]}
Qh3+ {[%emt 0:01:32]} 35. Kg1 {[%emt 0:00:01]} Bxg3 {[%emt 0:00:11]} 36. hxg3 {
[%emt 0:00:02]} Qxg3+ {[%emt 0:00:09]} 37. Kf1 {[%emt 0:00:13]} Qf3+ {[%emt 0:
00:00]} 38. Kg1 {[%emt 0:00:57]} Qxe3+ {[%emt 0:00:07]} 39. Kf1 {[%emt 0:01:10]
} Qxc3 {[%emt 0:00:36]} 40. Qxg4 {[%emt 0:00:09]} Qxc4+ {[%emt 0:00:18]} 41.
Kg1 {[%emt 0:30:03]} Qe6 {[%emt 0:30:18]} 0-1

[Event "44th Chess Olympiad Open 2022"]
[Site "Chennai"]
[Date "2022.07.31"]
[Round "3.38"]
[White "Shishkov, Andrei"]
[Black "Lorne, Ras Malaku"]
[Result "1-0"]
[WhiteElo "2366"]
[BlackElo "2079"]
[Annotator "RC"]
[PlyCount "97"]
[EventDate "2022.??.??"]
[TimeControl "60"]

1. d4 {[%emt 0:00:00]} Nf6 {[%emt 0:00:18]} 2. c4 {[%emt 0:00:04]} e6 {[%emt 0:
00:00]} 3. Nc3 {[%emt 0:00:04]} Bb4 {[%emt 0:00:13]} 4. Qc2 {[%emt 0:00:04]} d5
{[%emt 0:00:25]} 5. cxd5 {[%emt 0:00:05]} exd5 {[%emt 0:00:21]} 6. Bg5 {
[%emt 0:00:04]} h6 {[%emt 0:00:35]} 7. Bh4 {[%emt 0:00:05]} Nc6 {[%emt 0:01:56]
} 8. e3 {[%emt 0:00:49]} g5 {[%emt 0:00:38]} 9. Bg3 {[%emt 0:00:05]} Ne4 {
[%emt 0:00:49]} 10. f3 {[%emt 0:05:35]} Nxg3 {[%emt 0:06:13]} 11. hxg3 {
[%emt 0:00:04]} Qe7 {[%emt 0:03:36]} 12. Kf2 {[%emt 0:00:53]} Bxc3 {[%emt 0:00:
00]} 13. Qxc3 {[%emt 0:05:31]} Bd7 {[%emt 0:27:21]} 14. Rc1 {[%emt 0:07:56]} h5
{[%emt 0:09:18]} 15. Bd3 {[%emt 0:06:07]} O-O-O {[%emt 0:04:36]} 16. a3 {
[%emt 0:03:33]} f5 {[%emt 0:04:45]} 17. Ne2 {[%emt 0:02:22]} Rde8 {[%emt 0:00:
00]} 18. Bb1 {[%emt 0:03:28]} Rh6 {[%emt 0:04:11]} 19. Rhe1 {[%emt 0:09:32]}
Re6 {[%emt 0:09:29]} 20. Ng1 {[%emt 0:00:17]} f4 {[%emt 0:00:35]} 21. e4 {
[%emt 0:11:31]} fxg3+ {[%emt 0:03:16]} 22. Kf1 {[%emt 0:06:35]} Kb8 {[%emt 0:
00:00]} 23. Ba2 {[%emt 0:04:22]} Qd6 {[%emt 0:04:31]} 24. Bxd5 {[%emt 0:05:40]}
R6e7 {[%emt 0:00:36]} 25. Qb3 {[%emt 0:13:39]} Nd8 {[%emt 0:02:56]} 26. e5 {
[%emt 0:00:51]} Qh6 {[%emt 0:00:33]} 27. Qe3 {[%emt 0:08:16]} h4 {[%emt 0:00:
00]} 28. Ke2 {[%emt 0:01:41]} Qa6+ {[%emt 0:01:14]} 29. Qd3 {[%emt 0:02:42]}
Qb6 {[%emt 0:00:32]} 30. b4 {[%emt 0:01:32]} Bb5 {[%emt 0:00:40]} 31. Bc4 {
[%emt 0:00:05]} Ne6 {[%emt 0:00:11]} 32. Kf1 {[%emt 0:02:01]} Nxd4 {[%emt 0:00:
00]} 33. Bxb5 {[%emt 0:00:29]} Nxb5 {[%emt 0:00:59]} 34. Rc5 {[%emt 0:00:07]}
c6 {[%emt 0:01:24]} 35. Nh3 {[%emt 0:00:20]} Rg7 {[%emt 0:02:12]} 36. e6 {
[%emt 0:00:19]} g4 {[%emt 0:00:36]} 37. fxg4 {[%emt 0:00:40]} Nc7 {[%emt 0:00:
00]} 38. Qd6 {[%emt 0:00:40]} Rge7 {[%emt 0:00:32]} 39. Nf4 {[%emt 0:00:52]}
Kc8 {[%emt 0:00:30]} 40. Re2 {[%emt 0:00:59]} Nb5 {[%emt 0:00:28]} 41. Qe5 {
[%emt 0:03:17]} Rf8 {[%emt 0:06:44]} 42. Ke1 {[%emt 0:08:26]} Nc7 {[%emt 0:00:
00]} 43. Qg5 {[%emt 0:10:00]} Rfe8 {[%emt 0:01:43]} 44. Qxh4 {[%emt 0:07:13]}
Nxe6 {[%emt 0:04:06]} 45. Nd5 {[%emt 0:00:47]} Qd8 {[%emt 0:11:24]} 46. Nxe7+ {
[%emt 0:00:05]} Rxe7 {[%emt 0:00:22]} 47. Rh5 {[%emt 0:01:08]} Qd3 {[%emt 0:00:
00]} 48. Rh8+ {[%emt 0:00:10]} Kd7 {[%emt 0:02:10]} 49. Rd2 {[%emt 0:00:21]}
1-0